fUSD/lending_fUSD_20250309
["ID","MTS","AMOUNT","RATE_DAILY","PERIOD"]
[355699899,1741478787459,-100000.0,0.00025832,30]
[355699900,1741478787486,-100000.0,0.00025832,31]
[355699901,1741478787513,-100000.0,0.00025832,32]
[355699902,1741478787539,-100000.0,0.00025832,33]
[355699903,1741478787566,-100000.0,0.00025832,34]
[355699904,1741478787591,-150.0,0.00025832,30]
[355699905,1741478787615,-21000.0,0.00025832,30]
[355699906,1741478787639,-511.72792255,0.00025832,30]
[355699907,1741478787663,-4478338.27207745,0.00025832,30]
[355699908,1741478810650,-1798.17865245,0.00025832,120]
[355699909,1741478810676,-2463.42,0.00025832,60]
[355699910,1741478818907,-1681953.21840091,0.00025832,30]
[355699911,1741478818933,-3318046.78159909,0.00025832,30]
[355699939,1741479031722,-185.33,8.494e-05,2]
[355699940,1741479031733,-1500.0,8.513e-05,2]
[355699941,1741479031742,-150.0,8.523e-05,2]
[355699942,1741479031751,-177.05,8.533e-05,2]
[355699943,1741479031760,-250.0,8.541e-05,2]
[355699944,1741479031770,-1000.0,8.552e-05,2]
[355699945,1741479031780,-153.75739698,8.567e-05,2]
[355699946,1741479031791,-2000.0,8.567e-05,2]
[355699947,1741479031800,-23900.0,8.582e-05,2]
[355699948,1741479031810,-317.02,8.583e-05,2]
[355699949,1741479031820,-174.19,8.75e-05,2]
[355699950,1741479031830,-666.0,8.75e-05,2]
[355699951,1741479031840,-438.38,9.078e-05,2]
[355699952,1741479031849,-438.38,9.107e-05,2]
[355699953,1741479031858,-438.38,9.135e-05,2]
[355699954,1741479031867,-438.38,9.164e-05,2]
[355699955,1741479031876,-438.38,9.193e-05,2]
[355699956,1741479031887,-438.38,9.221e-05,2]
[355699957,1741479031896,-438.38,9.25e-05,2]
[355699958,1741479031905,-438.38,9.278e-05,2]
[355699959,1741479031915,-438.38,9.307e-05,2]
[355699960,1741479031924,-438.38,9.336e-05,2]
[355699961,1741479031933,-150.0,9.364e-05,2]
[355699962,1741479031944,-438.38,9.364e-05,2]
[355699963,1741479031954,-150.0,9.386e-05,2]
[355699964,1741479031963,-438.38,9.393e-05,2]
[355699965,1741479031974,-156.175,9.393e-05,2]
[355699966,1741479031983,-156.175,9.393e-05,2]
[355699967,1741479031993,-156.175,9.393e-05,2]
[355699968,1741479032003,-438.38,9.422e-05,2]
[355699969,1741479032013,-150.0,9.422e-05,2]
[355699970,1741479032022,-438.38,9.45e-05,2]
[355699971,1741479032032,-438.38,9.479e-05,2]
[355699972,1741479032041,-438.38,9.508e-05,2]
[355699973,1741479032050,-438.38,9.536e-05,2]
[355699974,1741479032059,-438.38,9.565e-05,2]
[355699975,1741479032068,-438.38,9.594e-05,2]
[355699976,1741479032077,-1000.0,9.621e-05,2]
[355699977,1741479032087,-438.38,9.622e-05,2]
[355699978,1741479032098,-317.02,9.655e-05,2]
[355699979,1741479032108,-4616.11247134,9.788e-05,2]
[355699980,1741479032118,-10610.4117,9.798e-05,2]
[355699981,1741479032129,-201.5819,9.798e-05,2]
[355699982,1741479032140,-15165.3826,9.799e-05,2]
[355699983,1741479032151,-10315.707,9.799e-05,2]
[355699985,1741479032160,-3014.52618241,9.799e-05,2]
[355699989,1741479032213,-1358.91901381,9.799e-05,2]
[355699995,1741479032263,-2543.445,9.799e-05,2]
[355700107,1741479037671,-559.59767007,9.799e-05,2]
[355700108,1741479037684,-8410.05433371,9.799e-05,2]
[355700109,1741479037694,-174.19,9.844e-05,2]
[355700110,1741479037704,-550.0,9.848e-05,2]
[355700111,1741479037714,-500.78592143,9.873e-05,2]
[355700112,1741479037725,-5000.0,9.879e-05,2]
[355700113,1741479037734,-5000.0,9.879e-05,2]
[355700114,1741479037743,-5000.0,9.879e-05,2]
[355700115,1741479037754,-500.0,9.897e-05,2]
[355700116,1741479037763,-500.0,9.897e-05,2]
[355700117,1741479037773,-500.0,9.897e-05,2]
[355700118,1741479037782,-924.01,9.897e-05,2]
[355700119,1741479037792,-500.0,9.897e-05,2]
[355700120,1741479037802,-936.4,9.897e-05,2]
[355700121,1741479037811,-1380.71,9.897e-05,2]
[355700122,1741479037821,-655.14,9.897e-05,2]
[355700123,1741479037830,-500.0,9.897e-05,2]
[355700124,1741479037840,-1542.19,9.897e-05,2]
[355700125,1741479037853,-2063.12,9.897e-05,2]
[355700126,1741479037862,-500.0,9.897e-05,2]
[355700127,1741479037871,-510.71782049,9.897e-05,2]
[355700128,1741479037880,-699.01,9.897e-05,2]
[355700129,1741479037890,-643.87,9.897e-05,2]
[355700131,1741479037899,-3303.77,9.897e-05,2]
[355700133,1741479037909,-642.81,9.897e-05,2]
[355700135,1741479037918,-500.0,9.897e-05,2]
[355700137,1741479037927,-500.0,9.897e-05,2]
[355700139,1741479037937,-725.83,9.897e-05,2]
[355700141,1741479037947,-500.0,9.897e-05,2]
[355700143,1741479037956,-649.57,9.897e-05,2]
[355700145,1741479037966,-500.0,9.897e-05,2]
[355700147,1741479037975,-500.0,9.897e-05,2]
[355700149,1741479037984,-654.44,9.897e-05,2]
[355700151,1741479037994,-851.8,9.897e-05,2]
[355700153,1741479038004,-588.79,9.897e-05,2]
[355700155,1741479038014,-703.68,9.897e-05,2]
[355700158,1741479038024,-665.52,9.897e-05,2]
[355700160,1741479038033,-779.41,9.897e-05,2]
[355700162,1741479038043,-500.0,9.897e-05,2]
[355700164,1741479038052,-2004.75,9.897e-05,2]
[355700166,1741479038062,-952.57,9.897e-05,2]
[355700168,1741479038071,-500.0,9.897e-05,2]
[355700170,1741479038082,-1007.2,9.897e-05,2]
[355700172,1741479038095,-666.5,9.897e-05,2]
[355700173,1741479038105,-1675.1,9.897e-05,2]
[355700175,1741479038115,-500.0,9.897e-05,2]
[355700177,1741479038124,-500.0,9.897e-05,2]
[355700179,1741479038134,-3543.56,9.897e-05,2]
[355700181,1741479038143,-778.92,9.897e-05,2]
[355700183,1741479038152,-774.73,9.897e-05,2]
[355700185,1741479038162,-500.0,9.897e-05,2]
[355700187,1741479038171,-500.0,9.897e-05,2]
[355700189,1741479038181,-500.0,9.897e-05,2]
[355700191,1741479038191,-500.0,9.897e-05,2]
[355700193,1741479038201,-794.3,9.897e-05,2]
[355700195,1741479038210,-500.0,9.897e-05,2]
[355700197,1741479038220,-500.0,9.897e-05,2]
[355700199,1741479038236,-2542.74,9.897e-05,2]
[355700201,1741479038247,-500.0,9.897e-05,2]
[355700203,1741479038260,-526.5,9.897e-05,2]
[355700205,1741479038269,-2143.65,9.897e-05,2]
[355700207,1741479038278,-500.0,9.897e-05,2]
[355700209,1741479038288,-550.68,9.897e-05,2]
[355700211,1741479038298,-500.0,9.897e-05,2]
[355700212,1741479038307,-878.82,9.897e-05,2]
[355700213,1741479038316,-500.0,9.897e-05,2]
[355700214,1741479038327,-641.39,9.897e-05,2]
[355700215,1741479038337,-422.77192437,9.897e-05,2]
[355700220,1741479038370,-77.22807563,9.897e-05,2]
[355700222,1741479038379,-745.49,9.897e-05,2]
[355700224,1741479038388,-500.0,9.897e-05,2]
[355700247,1741479038607,-98.87476363,9.897e-05,2]
[355700458,1741479042690,-401.12523637,9.897e-05,2]
[355700459,1741479042701,-98.87476363,9.897e-05,2]
[355700468,1741479045863,-401.12523637,9.897e-05,2]
[355700469,1741479045875,-620.96,9.897e-05,2]
[355700470,1741479045885,-499.0,9.897e-05,2]
[355700471,1741479045896,-500.0,9.897e-05,2]
[355700472,1741479045906,-1816.97,9.897e-05,2]
[355700473,1741479045915,-500.0,9.897e-05,2]
[355700474,1741479045924,-1407.56,9.897e-05,2]
[355700475,1741479045934,-660.56,9.897e-05,2]
[355700476,1741479045943,-550.0,9.898e-05,2]
[355700477,1741479045953,-500.0,9.898e-05,2]
[355700478,1741479045963,-500.0,9.898e-05,2]
[355700479,1741479045972,-500.0,9.898e-05,2]
[355700480,1741479045982,-500.0,9.898e-05,2]
[355700481,1741479045992,-500.0,9.898e-05,2]
[355700482,1741479046001,-500.0,9.898e-05,2]
[355700483,1741479046011,-500.0,9.898e-05,2]
[355700484,1741479046020,-15.60924663,9.898e-05,2]
[355700485,1741479046043,-487.47436483,9.898e-05,2]
[355700487,1741479046053,-500.0,9.898e-05,2]
[355700488,1741479046063,-500.0,9.898e-05,2]
[355700489,1741479046072,-500.0,9.898e-05,2]
[355700490,1741479046081,-500.0,9.898e-05,2]
[355700491,1741479046090,-500.0,9.898e-05,2]
[355700492,1741479046100,-500.0,9.898e-05,2]
[355700493,1741479046109,-500.0,9.898e-05,2]
[355700494,1741479046118,-500.0,9.898e-05,2]
[355700495,1741479046128,-500.0,9.898e-05,2]
[355700496,1741479046137,-500.0,9.898e-05,2]
[355700497,1741479046145,-500.0,9.898e-05,2]
[355700498,1741479046154,-500.0,9.898e-05,2]
[355700499,1741479046162,-500.0,9.898e-05,2]
[355700500,1741479046171,-214.42810517,9.898e-05,2]
[355700504,1741479241742,1315.36581208,0.00028,120]
[355700509,1741479592006,500.0,0.00028,120]
[355700511,1741479919402,323.0,0.00028,120]
[355700569,1741480231921,-570.15593579,8.219e-05,2]
[355700570,1741480231934,-1056.59406421,8.219e-05,2]
[355700571,1741480231944,-184.36471579,8.392e-05,2]
[355700572,1741480231956,-447.46047696,8.392e-05,2]
[355700573,1741480231984,-4177.45312899,8.392e-05,2]
[355700574,1741480231994,-151.0,8.392e-05,2]
[355700575,1741480232003,-1724.71,8.409e-05,2]
[355700576,1741480232012,-1411.74,8.431e-05,2]
[355700577,1741480232022,-23900.0,8.449e-05,2]
[355700578,1741480232032,-1000.0,8.464e-05,2]
[355700579,1741480232041,-150.0,8.485e-05,2]
[355700580,1741480232052,-1147.11,8.486e-05,2]
[355700581,1741480232061,-8340.1,8.486e-05,2]
[355700582,1741480232071,-1805.87,8.486e-05,2]
[355700583,1741480232080,-1794.67,8.508e-05,2]
[355700584,1741480232089,-9995.97,8.508e-05,2]
[355700585,1741480232098,-2974.32,8.508e-05,2]
[355700586,1741480232108,-3636.02,8.582e-05,2]
[355700587,1741480232117,-1500.0,8.662e-05,2]
[355700588,1741480232127,-2229.54,8.662e-05,2]
[355700589,1741480232136,-733.94,8.836e-05,2]
[355700590,1741480232145,-545.76,8.858e-05,2]
[355700591,1741480232154,-150.0,8.918e-05,2]
[355700592,1741480232164,-162.24,8.96e-05,2]
[355700594,1741480232173,-168.72,8.989e-05,2]
[355700596,1741480232182,-250.0,9.025e-05,2]
[355700598,1741480232191,-150.0,9.041e-05,2]
[355700600,1741480232201,-150.0,9.041e-05,2]
[355700601,1741480232211,-150.0,9.041e-05,2]
[355700602,1741480232219,-3057.78,9.068e-05,2]
[355700603,1741480232229,-6906.83,9.068e-05,2]
[355700604,1741480232238,-250.0,9.068e-05,2]
[355700605,1741480232247,-3857.82,9.123e-05,2]
[355700606,1741480232256,-150.0,9.178e-05,2]
[355700607,1741480232265,-168.72,9.259e-05,2]
[355700608,1741480232274,-255.0,9.333e-05,2]
[355700609,1741480232283,-168.4,9.34e-05,2]
[355700610,1741480232293,-1000.0,9.522e-05,2]
[355700611,1741480232302,-168.72,9.529e-05,2]
[355700612,1741480232311,-150.0,9.562e-05,7]
[355700613,1741480232320,-1000.0,9.6e-05,2]
[355700614,1741480232329,-267.4352,9.698e-05,2]
[355700615,1741480232338,-16270.41008657,9.698e-05,2]
[355700616,1741480232350,-23165.78349516,9.698e-05,2]
[355700617,1741480232361,-3049.99998966,9.698e-05,2]
[355700618,1741480232388,-941.96454601,9.698e-05,2]
[355700619,1741480232400,-2208.97184433,9.698e-05,2]
[355700620,1741480232411,-413.21193929,9.698e-05,2]
[355700621,1741480232423,-628.42,9.698e-05,2]
[355700622,1741480232434,-25089.04939898,9.698e-05,2]
[355700624,1741480232443,-1806.3342,9.797e-05,2]
[355700626,1741480232452,-1856.8108,9.797e-05,2]
[355700627,1741480232461,-2990.9689,9.797e-05,2]
[355700628,1741480232470,-2998.9614,9.797e-05,2]
[355700629,1741480232480,-5000.0,9.797e-05,2]
[355700630,1741480232489,-34886.39017615,9.798e-05,2]
[355700639,1741480237789,-1583.5946129,8.431e-05,2]
[355700715,1741480239791,-3225.68370883,8.431e-05,2]
[355700716,1741480239800,-10126.22612576,9.798e-05,2]
[355700717,1741480239812,-328.54822175,9.798e-05,2]
[355700718,1741480239902,-2538.78967996,9.798e-05,2]
[355700719,1741480239913,-5663.00549854,9.798e-05,2]
[355700720,1741480239962,-33104.27082656,9.798e-05,2]
[355700721,1741480240017,-7901.67657273,9.798e-05,2]
[355700722,1741480240077,-987.58941939,9.798e-05,2]
[355700723,1741480240088,-643.47365204,9.798e-05,2]
[355700724,1741480240099,-415.405,9.798e-05,2]
[355700725,1741480240110,-1034.6788,9.798e-05,2]
[355700726,1741480240121,-2518.18909981,9.798e-05,2]
[355700727,1741480240140,-1025.06710056,9.798e-05,2]
[355700728,1741480240151,-3150.11392817,9.798e-05,2]
[355700729,1741480240162,-1369.97507927,9.798e-05,2]
[355700730,1741480240174,-778277.67504106,9.798e-05,2]
[355700731,1741480240183,-1200.0868,9.798e-05,2]
[355700732,1741480240193,-229.7288,9.798e-05,2]
[355700734,1741480240203,-66003.4032,9.798e-05,2]
[355700735,1741480240211,-696.25150021,9.799e-05,2]
[355700736,1741480240220,-34911.63532816,9.799e-05,2]
[355700737,1741480240230,-178.42771283,9.799e-05,2]
[355700738,1741480240240,-550.0,9.856e-05,2]
[355700739,1741480240249,-162.24,9.856e-05,2]
[355700740,1741480240259,-611.81401683,9.856e-05,2]
[355700741,1741480240268,-581.83675481,9.873e-05,2]
[355700742,1741480240278,-500.0,9.895e-05,2]
[355700743,1741480240287,-500.0,9.895e-05,2]
[355700744,1741480240296,-500.0,9.895e-05,2]
[355700745,1741480240304,-722.19,9.895e-05,2]
[355700747,1741480240313,-500.0,9.895e-05,2]
[355700749,1741480240322,-500.0,9.895e-05,2]
[355700751,1741480240330,-821.51,9.895e-05,2]
[355700753,1741480240340,-700.99,9.895e-05,2]
[355700755,1741480240349,-500.0,9.895e-05,2]
[355700757,1741480240357,-500.0,9.895e-05,2]
[355700759,1741480240366,-500.0,9.895e-05,2]
[355700761,1741480240375,-1055.83,9.895e-05,2]
[355700763,1741480240384,-651.22,9.895e-05,2]
[355700765,1741480240393,-769.73,9.895e-05,2]
[355700766,1741480240402,-500.0,9.895e-05,2]
[355700767,1741480240411,-500.0,9.895e-05,2]
[355700768,1741480240421,-878.73,9.895e-05,2]
[355700770,1741480240430,-500.0,9.895e-05,2]
[355700771,1741480240439,-500.0,9.895e-05,2]
[355700773,1741480240455,-3880.42,9.895e-05,2]
[355700774,1741480240464,-1069.73,9.895e-05,2]
[355700775,1741480240473,-500.0,9.895e-05,2]
[355700776,1741480240482,-500.0,9.895e-05,2]
[355700777,1741480240491,-500.0,9.895e-05,2]
[355700778,1741480240500,-500.0,9.895e-05,2]
[355700779,1741480240509,-500.0,9.895e-05,2]
[355700780,1741480240518,-500.0,9.895e-05,2]
[355700781,1741480240527,-500.0,9.895e-05,2]
[355700782,1741480240536,-500.0,9.895e-05,2]
[355700783,1741480240545,-2784.42,9.895e-05,2]
[355700784,1741480240554,-500.0,9.895e-05,2]
[355700785,1741480240563,-500.0,9.895e-05,2]
[355700786,1741480240572,-500.0,9.895e-05,2]
[355700787,1741480240581,-500.0,9.895e-05,2]
[355700788,1741480240591,-500.0,9.895e-05,2]
[355700789,1741480240610,-500.0,9.895e-05,2]
[355700790,1741480240622,-500.0,9.895e-05,2]
[355700791,1741480240631,-500.0,9.895e-05,2]
[355700792,1741480240640,-500.0,9.895e-05,2]
[355700793,1741480240648,-504.02879502,9.895e-05,2]
[355700794,1741480240657,-712.86,9.895e-05,2]
[355700795,1741480240667,-500.0,9.895e-05,2]
[355700796,1741480240676,-504.94518835,9.895e-05,2]
[355700797,1741480240686,-500.0,9.895e-05,2]
[355700798,1741480240695,-500.0,9.895e-05,2]
[355700799,1741480240704,-500.0,9.895e-05,2]
[355700800,1741480240713,-500.0,9.895e-05,2]
[355700801,1741480240723,-500.0,9.895e-05,2]
[355700802,1741480240732,-500.0,9.895e-05,2]
[355700803,1741480240741,-500.0,9.895e-05,2]
[355700804,1741480240750,-500.0,9.895e-05,2]
[355700805,1741480240759,-500.0,9.895e-05,2]
[355700806,1741480240769,-500.0,9.895e-05,2]
[355700807,1741480240778,-500.0,9.895e-05,2]
[355700808,1741480240787,-500.0,9.895e-05,2]
[355700809,1741480240796,-500.0,9.895e-05,2]
[355700810,1741480240806,-500.0,9.895e-05,2]
[355700811,1741480240815,-500.0,9.895e-05,2]
[355700812,1741480240824,-574.06535056,9.895e-05,2]
[355700813,1741480240834,-500.0,9.895e-05,2]
[355700814,1741480240843,-500.0,9.895e-05,2]
[355700815,1741480240853,-500.0,9.895e-05,2]
[355700816,1741480240863,-500.0,9.895e-05,2]
[355700817,1741480240872,-500.0,9.895e-05,2]
[355700818,1741480240882,-500.0,9.895e-05,2]
[355700819,1741480240891,-4716.209657,9.896e-05,2]
[355700820,1741480240901,-7520.370747,9.896e-05,2]
[355700821,1741480240910,-215.815234,9.896e-05,2]
[355700822,1741480240919,-177.785421,9.896e-05,2]
[355700823,1741480240928,-500.0,9.896e-05,2]
[355700824,1741480240938,-500.0,9.896e-05,2]
[355700825,1741480240947,-500.0,9.896e-05,2]
[355700826,1741480240956,-500.0,9.896e-05,2]
[355700827,1741480240966,-501.33622084,9.896e-05,2]
[355700828,1741480240978,-500.0,9.896e-05,2]
[355700829,1741480240998,-500.0,9.896e-05,2]
[355700830,1741480241013,-500.0,9.896e-05,2]
[355700831,1741480241022,-500.0,9.896e-05,2]
[355700832,1741480241032,-500.0,9.896e-05,2]
[355700833,1741480241042,-500.0,9.896e-05,2]
[355700834,1741480241052,-291.69871951,9.896e-05,2]
[355700835,1741480241061,-500.0,9.896e-05,2]
[355700836,1741480241071,-500.0,9.896e-05,2]
[355700837,1741480241082,-500.0,9.896e-05,2]
[355700838,1741480241092,-262.69730231,9.896e-05,2]
[355700839,1741480241102,-500.0,9.896e-05,2]
[355700840,1741480241111,-500.0,9.896e-05,2]
[355700841,1741480241120,-500.0,9.896e-05,2]
[355700842,1741480241129,-514.52404178,9.896e-05,2]
[355700843,1741480241139,-508.94319562,9.896e-05,2]
[355700844,1741480241149,-500.0,9.896e-05,2]
[355700845,1741480241158,-500.0,9.896e-05,2]
[355700846,1741480241167,-507.21807176,9.896e-05,2]
[355700847,1741480241178,-500.0,9.896e-05,2]
[355700848,1741480241187,-500.0,9.896e-05,2]
[355700849,1741480241198,-500.0,9.896e-05,2]
[355700850,1741480241207,-500.0,9.896e-05,2]
[355700851,1741480241217,-500.0,9.896e-05,2]
[355700852,1741480241227,-192.96118392,9.896e-05,2]
[355700853,1741480241260,-309.37307358,9.896e-05,2]
[355700854,1741480241269,-500.0,9.896e-05,2]
[355700855,1741480241278,-500.0,9.896e-05,2]
[355700856,1741480241512,-500.0,9.896e-05,2]
[355700857,1741480241522,-541.10748351,9.896e-05,2]
[355700858,1741480241532,-500.0,9.896e-05,2]
[355700859,1741480241541,-517.32332713,9.896e-05,2]
[355700860,1741480241551,-500.0,9.896e-05,2]
[355700861,1741480241561,-500.0,9.896e-05,2]
[355700862,1741480241571,-500.0,9.896e-05,2]
[355700863,1741480241581,-500.0,9.896e-05,2]
[355700864,1741480241591,-500.0,9.896e-05,2]
[355700865,1741480241600,-500.0,9.896e-05,2]
[355700866,1741480241610,-500.0,9.896e-05,2]
[355700867,1741480241620,-500.0,9.896e-05,2]
[355700868,1741480241630,-500.0,9.896e-05,2]
[355700869,1741480241639,-500.0,9.896e-05,2]
[355700870,1741480241649,-500.0,9.896e-05,2]
[355700871,1741480241659,-500.0,9.896e-05,2]
[355700872,1741480241669,-500.0,9.896e-05,2]
[355700873,1741480241679,-500.0,9.896e-05,2]
[355700874,1741480241689,-500.0,9.896e-05,2]
[355700875,1741480241699,-500.0,9.896e-05,2]
[355700876,1741480241708,-500.0,9.896e-05,2]
[355700877,1741480241718,-500.0,9.896e-05,2]
[355700878,1741480241727,-500.0,9.896e-05,2]
[355700879,1741480241736,-524.58973041,9.896e-05,2]
[355700880,1741480241746,-500.0,9.896e-05,2]
[355700881,1741480241755,-456.94532954,9.896e-05,2]
[355700882,1741480241764,-500.0,9.896e-05,2]
[355700883,1741480241774,-500.0,9.896e-05,2]
[355700884,1741480241783,-647.23,9.896e-05,2]
[355700885,1741480241793,-500.0,9.896e-05,2]
[355700886,1741480241802,-500.0,9.896e-05,2]
[355700887,1741480241811,-193.14766913,9.896e-05,2]
[355700888,1741480241821,-500.0,9.896e-05,2]
[355700889,1741480241830,-538.4945918,9.896e-05,2]
[355700890,1741480241840,-500.0,9.896e-05,2]
[355700891,1741480241850,-500.0,9.896e-05,2]
[355700892,1741480241859,-503.27468534,9.896e-05,2]
[355700893,1741480241869,-500.0,9.896e-05,2]
[355700894,1741480241879,-500.0,9.896e-05,2]
[355700895,1741480241890,-500.0,9.896e-05,2]
[355700896,1741480241900,-500.0,9.896e-05,2]
[355700897,1741480241910,-510.8711408,9.896e-05,2]
[355700898,1741480241920,-504.57506496,9.896e-05,2]
[355700899,1741480241929,-500.0,9.896e-05,2]
[355700900,1741480241939,-506.04886768,9.896e-05,2]
[355700901,1741480241948,-500.0,9.896e-05,2]
[355700902,1741480241958,-500.0,9.896e-05,2]
[355700903,1741480241967,-500.0,9.896e-05,2]
[355700904,1741480241978,-500.0,9.896e-05,2]
[355700905,1741480241989,-500.0,9.896e-05,2]
[355700906,1741480241998,-517.441036,9.896e-05,2]
[355700907,1741480242008,-500.0,9.896e-05,2]
[355700908,1741480242019,-500.0,9.896e-05,2]
[355700909,1741480242028,-500.0,9.896e-05,2]
[355700910,1741480242037,-500.0,9.896e-05,2]
[355700911,1741480242047,-500.0,9.896e-05,2]
[355700912,1741480242057,-549.61104828,9.896e-05,2]
[355700913,1741480242067,-500.0,9.896e-05,2]
[355700914,1741480242077,-500.0,9.896e-05,2]
[355700915,1741480242087,-501.62146794,9.896e-05,2]
[355700916,1741480242097,-529.24305732,9.896e-05,2]
[355700917,1741480242106,-500.0,9.896e-05,2]
[355700918,1741480242116,-510.30339879,9.896e-05,2]
[355700919,1741480242126,-500.0,9.896e-05,2]
[355700920,1741480242135,-500.0,9.896e-05,2]
[355700921,1741480242145,-290.67479832,9.896e-05,2]
[355700922,1741480242155,-500.0,9.896e-05,2]
[355700923,1741480242165,-507.1583117,9.896e-05,2]
[355700924,1741480242175,-500.0,9.896e-05,2]
[355700925,1741480242188,-500.0,9.896e-05,2]
[355700926,1741480242198,-502.90707833,9.896e-05,2]
[355700927,1741480242208,-500.0,9.896e-05,2]
[355700928,1741480242219,-500.0,9.896e-05,2]
[355700929,1741480242228,-500.0,9.896e-05,2]
[355700930,1741480242238,-500.0,9.896e-05,2]
[355700931,1741480242247,-500.0,9.896e-05,2]
[355700932,1741480242257,-500.0,9.896e-05,2]
[355700933,1741480242266,-500.0,9.896e-05,2]
[355700934,1741480242275,-500.0,9.896e-05,2]
[355700935,1741480242285,-510.87610005,9.896e-05,2]
[355700936,1741480242295,-500.0,9.896e-05,2]
[355700937,1741480242304,-500.0,9.896e-05,2]
[355700938,1741480242314,-500.0,9.896e-05,2]
[355700939,1741480242323,-500.0,9.896e-05,2]
[355700940,1741480242333,-500.0,9.896e-05,2]
[355700941,1741480242343,-500.0,9.896e-05,2]
[355700942,1741480242352,-499.99470909,9.896e-05,2]
[355700943,1741480242362,-500.0,9.896e-05,2]
[355700944,1741480242372,-500.0,9.896e-05,2]
[355700945,1741480242382,-500.0,9.896e-05,2]
[355700946,1741480242391,-500.0,9.896e-05,2]
[355700947,1741480242401,-394.01688784,9.896e-05,2]
[355700948,1741480242411,-500.0,9.896e-05,2]
[355700949,1741480242421,-500.0,9.896e-05,2]
[355700950,1741480242431,-500.0,9.896e-05,2]
[355700951,1741480242440,-500.0,9.896e-05,2]
[355700952,1741480242449,-531.08475036,9.896e-05,2]
[355700953,1741480242459,-500.0,9.896e-05,2]
[355700954,1741480242469,-500.0,9.896e-05,2]
[355700955,1741480242479,-502.75791015,9.896e-05,2]
[355700956,1741480242488,-241.81556236,9.896e-05,2]
[355700957,1741480242498,-500.0,9.896e-05,2]
[355700958,1741480242507,-500.0,9.896e-05,2]
[355700959,1741480242517,-500.0,9.896e-05,2]
[355700960,1741480242527,-500.0,9.896e-05,2]
[355700961,1741480242536,-500.0,9.896e-05,2]
[355700962,1741480242545,-500.0,9.896e-05,2]
[355700963,1741480242555,-500.0,9.896e-05,2]
[355700965,1741480242564,-500.0,9.896e-05,2]
[355700966,1741480242573,-500.0,9.896e-05,2]
[355700967,1741480242582,-503.3122088,9.896e-05,2]
[355700968,1741480242592,-500.0,9.896e-05,2]
[355700969,1741480242602,-500.0,9.896e-05,2]
[355700970,1741480242612,-500.0,9.896e-05,2]
[355700971,1741480242621,-500.0,9.896e-05,2]
[355700972,1741480242631,-500.0,9.896e-05,2]
[355700973,1741480242640,-500.0,9.896e-05,2]
[355700974,1741480242650,-695.74,9.896e-05,2]
[355700975,1741480242659,-806.73,9.896e-05,2]
[355700976,1741480242669,-491.81071135,9.896e-05,2]
[355700977,1741480242678,-506.39918457,9.896e-05,2]
[355700978,1741480242688,-500.0,9.896e-05,2]
[355700979,1741480242697,-500.0,9.896e-05,2]
[355700980,1741480242707,-500.0,9.896e-05,2]
[355700981,1741480242716,-500.0,9.896e-05,2]
[355700984,1741480242726,-500.0,9.896e-05,2]
[355700987,1741480242735,-500.0,9.896e-05,2]
[355700990,1741480242745,-322.88530699,9.896e-05,2]
[355700993,1741480242754,-507.80764611,9.896e-05,2]
[355700996,1741480242763,-500.0,9.896e-05,2]
[355700999,1741480242773,-500.0,9.896e-05,2]
[355701000,1741480242782,-500.0,9.896e-05,2]
[355701002,1741480242791,-500.0,9.896e-05,2]
[355701004,1741480242801,-500.0,9.896e-05,2]
[355701006,1741480242811,-500.0,9.896e-05,2]
[355701008,1741480242820,-500.0,9.896e-05,2]
[355701009,1741480242830,-572.86,9.896e-05,2]
[355701010,1741480242840,-500.0,9.896e-05,2]
[355701011,1741480242851,-500.0,9.896e-05,2]
[355701012,1741480242860,-187.38509108,9.896e-05,2]
[355701013,1741480242870,-500.0,9.896e-05,2]
[355701014,1741480242879,-532.79,9.896e-05,2]
[355701015,1741480242888,-500.0,9.896e-05,2]
[355701016,1741480242898,-549.49905854,9.896e-05,2]
[355701017,1741480242908,-790.47,9.896e-05,2]